[Event "5th Ordu Open 2019"]
[Site "Ordu"]
[Date "2019.05.04"]
[Round "8.4"]
[White "Barski, Radoslaw"]
[Black "Haznedaroglu, Kivanc"]
[Result "1-0"]
[ECO "B12"]
[WhiteElo "2462"]
[BlackElo "2466"]
[Annotator "ChessBase"]
[PlyCount "63"]
[EventDate "2019.04.29"]
[EventType "swiss"]
[EventCountry "TUR"]
[SourceTitle "playchess.com"]
[Source "ChessBase"]
[SourceQuality "1"]
[TimeControl "5400+30"]

1. e4 {[%emt 0:00:30]} c6 {[%emt 0:00:30]} 2. d4 {[%emt 0:00:30]} d5 {[%emt 0:00:00]} 3. e5 {[%emt 0:00:30]} Bf5 {[%emt 0:00:00]} 4. h4 {[%emt 0:00:30]} h5 {[%emt 0:00:00]} 5. Bd3 {[%emt 0:01:30]} Bxd3 {[%emt 0:00:00]} 6. Qxd3 {[%emt 0:00:30]} e6 {[%emt 0:00:30]} 7. Bg5 {[%emt 0:00:30]} Be7 {[%emt 0:00:00]} 8. Nf3 {[%emt 0:00:30]} Nh6 {[%emt 0:00:00]} 9. Bxh6 {[%emt 0:08:30]} Rxh6 {[%emt 0:00:00]} 10. Nc3 {[%emt 0:01:30]} Nd7 {[%emt 0:06:00]} 11. O-O-O {[%emt 0:16:30]} c5 {[%emt 0:09:30]} 12. dxc5 {[%emt 0:01:30]} Nxc5 {[%emt 0:00:30]} 13. Qe3 {[%emt 0:00:30]} Rg6 {[%emt 0:03:30]} 14. Ng5 {[%emt 0:03:30]} Qc7 {[%emt 0:10:30]} 15. Kb1 {[%emt 0:17:30]} a6 {[%emt 0:05:30]} 16. f4 {[%emt 0:01:30]} Rc8 {[%emt 0:11:30]} 17. f5 {[%emt 0:04:30]} exf5 {[%emt 0:00:30]} 18. Nxd5 {[%emt 0:00:30]} Qc6 {[%emt 0:00:00]} 19. Nxe7 {[%emt 0:02:30]} Kxe7 {[%emt 0:00:00]} 20. Rd6 {[%emt 0:02:30]} Qxg2 {[%emt 0:02:30]} 21. Rg1 {[%emt 0:00:00]} Qh2 {[%emt 0:00:30]} 22. Rxg6 {[%emt 0:23:14]} fxg6 {[%emt 0:00:30]} 23. Nf3 {[%emt 0:00:00]} Qh3 {[%emt 0:00:30]} 24. Qg5+ {[%emt 0:00:00]} Kd7 {[%emt 0:03:30]} 25. Qd2+ {[%emt 0:00:00]} Ke8 {[%emt 0:06:30]} 26. Qd5 {[%emt 0:00:03]} f4 {[%emt 0:00:30]} 27. Qg8+ {[%emt 0:00:52]} Kd7 {[%emt 0:00:30]} 28. Qf7+ {[%emt 0:01:26]} Kc6 {[%emt 0:00:30]} 29. Rxg6+ {[%emt 0:06:00]} Kb5 {[%emt 0:00:30]} 30. Nd4+ {[%emt 0:00:00]} Ka5 {[%emt 0:00:30]} 31. a3 {[%emt 0:00:00]} Qe3 {[%emt 0:03:30]} 32. Qc4 {[%emt 0:02:10]} 1-0

[Event "5th Ordu Open 2019"]
[Site "Ordu"]
[Date "2019.05.04"]
[Round "8.7"]
[White "Neverov, Valeriy"]
[Black "Olcum, Ahmet"]
[Result "0-1"]
[ECO "B07"]
[WhiteElo "2495"]
[BlackElo "2300"]
[Annotator "ChessBase"]
[PlyCount "102"]
[EventDate "2019.04.29"]
[EventType "swiss"]
[EventCountry "TUR"]
[SourceTitle "playchess.com"]
[Source "ChessBase"]
[SourceQuality "1"]
[TimeControl "5400+30"]

1. d4 {[%emt 0:03:30]} d6 {[%emt 0:01:30]} 2. e4 {[%emt 0:00:30]} Nf6 {[%emt 0:00:30]} 3. Nc3 {[%emt 0:01:30]} Nbd7 {[%emt 0:00:30]} 4. Nge2 {[%emt 0:09:30]} c5 {[%emt 0:07:30]} 5. g3 {[%emt 0:05:30]} g6 {[%emt 0:03:30]} 6. Bg2 {[%emt 0:01:30]} Bg7 {[%emt 0:00:00]} 7. O-O {[%emt 0:02:30]} O-O {[%emt 0:00:00]} 8. a4 {[%emt 0:01:30]} cxd4 {[%emt 0:02:30]} 9. Nxd4 {[%emt 0:00:30]} Nc5 {[%emt 0:00:30]} 10. Re1 {[%emt 0:07:30]} Bg4 {[%emt 0:04:30]} 11. f3 {[%emt 0:04:30]} Bd7 {[%emt 0:00:30]} 12. Be3 {[%emt 0:00:30]} Qa5 {[%emt 0:04:30]} 13. Qb1 {[%emt 0:14:30]} Ne6 {[%emt 0:14:30]} 14. Nce2 {[%emt 0:02:30]} Rfc8 {[%emt 0:05:30]} 15. c3 {[%emt 0:01:30]} Nxd4 {[%emt 0:05:30]} 16. cxd4 {[%emt 0:02:30]} d5 {[%emt 0:04:30]} 17. b4 {[%emt 0:09:30]} Qd8 {[%emt 0:03:30]} 18. e5 {[%emt 0:01:30]} Bf5 {[%emt 0:01:30]} 19. Qb3 {[%emt 0:00:30]} Bc2 {[%emt 0:02:30]} 20. Qa2 {[%emt 0:04:30]} Ne8 {[%emt 0:02:30]} 21. Nf4 {[%emt 0:01:30]} Bh6 {[%emt 0:12:30]} 22. Nxd5 {[%emt 0:09:02]} Bxe3+ {[%emt 0:01:30]} 23. Nxe3 {[%emt 0:00:09]} Qxd4 {[%emt 0:00:30]} 24. e6 {[%emt 0:01:10]} f6 {[%emt 0:01:36]} 25. Kh1 {[%emt 0:00:51]} Bd3 {[%emt 0:01:06]} 26. Rad1 {[%emt 0:01:16]} Rd8 {[%emt 0:11:34]} 27. Bf1 {[%emt 0:09:25]} Qxb4 {[%emt 0:00:10]} 28. Nd5 {[%emt 0:00:40]} Rxd5 {[%emt 0:00:07]} 29. Qxd5 {[%emt 0:00:30]} Bc2 {[%emt 0:00:21]} 30. Rc1 {[%emt 0:02:31]} Bxa4 {[%emt 0:00:23]} 31. Rb1 {[%emt 0:00:29]} Qc3 {[%emt 0:00:22]} 32. Bb5 {[%emt 0:01:47]} Bxb5 {[%emt 0:05:43]} 33. Qxb5 {[%emt 0:00:07]} Qxf3+ {[%emt 0:00:00]} 34. Kg1 {[%emt 0:00:01]} Nd6 {[%emt 0:00:17]} 35. Qd7 {[%emt 0:00:27]} Kf8 {[%emt 0:00:19]} 36. Rbd1 {[%emt 0:01:29]} Qc3 {[%emt 0:03:37]} 37. Rc1 {[%emt 0:00:45]} Qd4+ {[%emt 0:00:07]} 38. Kh1 {[%emt 0:00:42]} a5 {[%emt 0:00:13]} 39. Red1 {[%emt 0:00:02]} Qe4+ {[%emt 0:00:36]} 40. Kg1 {[%emt 0:00:03]} Qe3+ {[%emt 0:00:54]} 41. Kg2 {[%emt 0:00:54]} Qe2+ {[%emt 0:00:10]} 42. Kg1 {[%emt 0:00:22]} a4 {[%emt 0:00:37]} 43. Rf1 {[%emt 0:00:31]} Qe3+ {[%emt 0:00:23]} 44. Kg2 {[%emt 0:00:38]} Qe4+ {[%emt 0:00:01]} 45. Kh3 {[%emt 0:00:17]} f5 {[%emt 0:01:04]} 46. Rf4 {[%emt 0:00:33]} Qe2 {[%emt 0:01:34]} 47. Rc7 {[%emt 0:00:32]} Re8 {[%emt 0:00:19]} 48. Rxa4 {[%emt 0:00:25]} g5 {[%emt 0:00:34]} 49. Ra1 {[%emt 0:00:37]} h6 {[%emt 0:00:44]} 50. Rh1 {[%emt 0:00:32]} g4+ {[%emt 0:00:39]} 51. Kh4 {[%emt 0:00:14]} Qe3 {[%emt 0:00:00]} 0-1

[Event "5th Ordu Open 2019"]
[Site "Ordu"]
[Date "2019.05.04"]
[Round "8.12"]
[White "Bolkvadze, Tedo"]
[Black "Kvikvinia, Teimuraz"]
[Result "1/2-1/2"]
[ECO "E00"]
[WhiteElo "1588"]
[BlackElo "1592"]
[Annotator "NA"]
[PlyCount "144"]
[EventDate "2019.04.29"]
[EventType "swiss"]
[EventCountry "TUR"]
[SourceTitle "playchess.com"]
[Source "ChessBase"]
[SourceQuality "1"]
[TimeControl "5400+30"]

1. d4 {[%emt 0:30:30]} Nf6 {[%emt 0:30:30]} 2. c4 {[%emt 0:00:00]} e6 {[%emt 0:00:30]} 3. g3 {[%emt 0:00:00]} b6 {[%emt 0:00:30]} 4. Bg2 {[%emt 0:00:30]} c6 {[%emt 0:00:00]} 5. e4 {[%emt 0:00:30]} d5 {[%emt 0:03:00]} 6. e5 {[%emt 0:02:30]} Nfd7 {[%emt 0:01:30]} 7. Ne2 {[%emt 0:00:30]} Ba6 {[%emt 0:00:30]} 8. cxd5 {[%emt 0:02:30]} cxd5 {[%emt 0:02:30]} 9. O-O {[%emt 0:00:30]} Be7 {[%emt 0:00:30]} 10. Nbc3 {[%emt 0:01:30]} Nc6 {[%emt 0:02:30]} 11. Be3 {[%emt 0:04:30]} O-O {[%emt 0:03:30]} 12. Qa4 {[%emt 0:04:30]} Bb7 {[%emt 0:03:30]} 13. f4 {[%emt 0:00:30]} Kh8 {[%emt 0:18:30]} 14. f5 {[%emt 0:01:30]} Bg5 {[%emt 0:01:30]} 15. Bxg5 {[%emt 0:04:30]} Qxg5 {[%emt 0:00:30]} 16. Rf4 {[%emt 0:00:30]} Qe7 {[%emt 0:02:30]} 17. Raf1 {[%emt 0:01:30]} a6 {[%emt 0:00:30]} 18. f6 {[%emt 0:02:30]} gxf6 {[%emt 0:00:30]} 19. exf6 {[%emt 0:00:00]} Qd8 {[%emt 0:01:30]} 20. Qc2 {[%emt 0:01:00]} Rg8 {[%emt 0:00:30]} 21. Rh4 {[%emt 0:00:30]} Nf8 {[%emt 0:00:30]} 22. Rh6 {[%emt 0:01:30]} Rg6 {[%emt 0:02:30]} 23. Qd2 {[%emt 0:00:30]} Nb8 {[%emt 0:01:30]} 24. Rxg6 {[%emt 0:03:30]} Nxg6 {[%emt 0:00:30]} 25. h4 {[%emt 0:00:00]} Qg8 {[%emt 0:02:30]} 26. h5 {[%emt 0:03:00]} Nf8 {[%emt 0:00:30]} 27. Bh3 {[%emt 0:00:30]} Nfd7 {[%emt 0:02:43]} 28. Qh6 {[%emt 0:01:30]} Qf8 {[%emt 0:01:01]} 29. Qg5 {[%emt 0:00:30]} Qg8 {[%emt 0:01:25]} 30. Qh4 {[%emt 0:00:30]} h6 {[%emt 0:00:04]} 31. Rf4 {[%emt 0:00:30]} Qg5 {[%emt 0:00:22]} 32. Qxg5 {[%emt 0:04:30]} hxg5 {[%emt 0:00:04]} 33. Rf2 {[%emt 0:00:30]} Nc6 {[%emt 0:01:09]} 34. Nxd5 {[%emt 0:05:30]} Nxd4 {[%emt 0:00:22]} 35. Nxd4 {[%emt 0:00:30]} Bxd5 {[%emt 0:00:58]} 36. Bg2 {[%emt 0:00:30]} Bxg2 {[%emt 0:01:56]} 37. Kxg2 {[%emt 0:00:00]} Kh7 {[%emt 0:03:25]} 38. g4 {[%emt 0:02:00]} Kh6 {[%emt 0:00:52]} 39. Kh3 {[%emt 0:03:41]} Rc8 {[%emt 0:00:36]} 40. Rd2 {[%emt 0:03:08]} Nxf6 {[%emt 0:00:44]} 41. Nf3 {[%emt 0:03:11]} Nd5 {[%emt 0:00:38]} 42. Ne5 {[%emt 0:00:30]} f6 {[%emt 0:00:18]} 43. Ng6 {[%emt 0:02:35]} Kg7 {[%emt 0:00:58]} 44. Re2 {[%emt 0:00:52]} e5 {[%emt 0:02:40]} 45. Rd2 {[%emt 0:01:00]} Rd8 {[%emt 0:01:21]} 46. Rc2 {[%emt 0:00:30]} e4 {[%emt 0:01:23]} 47. Kg3 {[%emt 0:00:09]} Re8 {[%emt 0:00:58]} 48. a3 {[%emt 0:01:54]} a5 {[%emt 0:01:45]} 49. Rc1 {[%emt 0:01:41]} Kf7 {[%emt 0:00:51]} 50. Rd1 {[%emt 0:00:30]} Rd8 {[%emt 0:01:46]} 51. Re1 {[%emt 0:05:28]} e3 {[%emt 0:00:30]} 52. Kf3 {[%emt 0:00:00]} Rc8 {[%emt 0:01:21]} 53. Rd1 {[%emt 0:00:25]} Rd8 {[%emt 0:00:12]} 54. Re1 {[%emt 0:00:05]} Rc8 {[%emt 0:00:49]} 55. Rd1 {[%emt 0:00:02]} Rd8 {[%emt 0:01:07]} 56. Re1 {[%emt 0:00:30]} Re8 {[%emt 0:00:00]} 57. Rd1 {[%emt 0:01:09]} e2 {[%emt 0:00:36]} 58. Re1 {[%emt 0:00:13]} Re3+ {[%emt 0:00:25]} 59. Kf2 {[%emt 0:00:12]} b5 {[%emt 0:01:23]} 60. Rxe2 {[%emt 0:00:39]} Rxe2+ {[%emt 0:00:30]} 61. Kxe2 {[%emt 0:00:04]} a4 {[%emt 0:00:42]} 62. Kd3 {[%emt 0:03:40]} Nb6 {[%emt 0:00:44]} 63. Nh8+ {[%emt 0:00:30]} Kg7 {[%emt 0:00:10]} 64. Ng6 {[%emt 0:00:00]} Kf7 {[%emt 0:00:42]} 65. Nh8+ {[%emt 0:00:51]} Kg7 {[%emt 0:00:19]} 66. Ng6 {[%emt 0:00:14]} Kf7 {[%emt 0:00:00]} 67. Kc3 {[%emt 0:01:07]} Nc4 {[%emt 0:00:30]} 68. Nh8+ {[%emt 0:00:00]} Kg7 {[%emt 0:00:00]} 69. Ng6 {[%emt 0:00:09]} Kf7 {[%emt 0:00:25]} 70. Nh8+ {[%emt 0:00:30]} Kg7 {[%emt 0:00:30]} 71. Ng6 {[%emt 0:00:30]} Kf7 {[%emt 0:00:30]} 72. Nh8+ {[%emt 0:00:00]} Kg7 {[%emt 0:00:00]} 1/2-1/2

[Event "5th Ordu Open 2019"]
[Site "Ordu"]
[Date "2019.05.04"]
[Round "8.13"]
[White "Caymaz, Umit Oguz"]
[Black "Dikilitas, Beren"]
[Result "1/2-1/2"]
[ECO "E90"]
[WhiteElo "1442"]
[BlackElo "1364"]
[Annotator "NA"]
[PlyCount "49"]
[EventDate "2019.04.29"]
[EventType "swiss"]
[EventCountry "TUR"]
[SourceTitle "playchess.com"]
[Source "ChessBase"]
[SourceQuality "1"]
[TimeControl "5400+30"]

1. c4 {[%emt 0:30:30]} g6 {[%emt 0:30:30]} 2. d4 {[%emt 0:00:30]} Bg7 {[%emt 0:00:30]} 3. Nf3 {[%emt 0:01:30]} Nf6 {[%emt 0:00:30]} 4. Nc3 {[%emt 0:01:30]} O-O {[%emt 0:01:30]} 5. e4 {[%emt 0:01:30]} d6 {[%emt 0:00:30]} 6. h3 {[%emt 0:00:00]} e5 {[%emt 0:01:30]} 7. dxe5 {[%emt 0:06:00]} dxe5 {[%emt 0:00:30]} 8. Bg5 {[%emt 0:01:30]} c6 {[%emt 0:01:30]} 9. Qc2 {[%emt 0:01:30]} Qc7 {[%emt 0:04:30]} 10. Bd3 {[%emt 0:01:30]} Na6 {[%emt 0:00:30]} 11. a3 {[%emt 0:00:30]} Nc5 {[%emt 0:03:30]} 12. O-O {[%emt 0:01:30]} Nh5 {[%emt 0:12:30]} 13. b4 {[%emt 0:06:30]} Ne6 {[%emt 0:02:30]} 14. h4 {[%emt 0:10:30]} Nhf4 {[%emt 0:04:30]} 15. Rfd1 {[%emt 0:03:30]} h6 {[%emt 0:02:30]} 16. Bxf4 {[%emt 0:00:30]} Nxf4 {[%emt 0:01:30]} 17. Bf1 {[%emt 0:03:30]} Bg4 {[%emt 0:04:30]} 18. Ne2 {[%emt 0:13:16]} Bxf3 {[%emt 0:05:48]} 19. gxf3 {[%emt 0:00:25]} Qe7 {[%emt 0:01:13]} 20. c5 {[%emt 0:04:20]} Qxh4 {[%emt 0:05:09]} 21. Rd6 {[%emt 0:00:54]} Qg5+ {[%emt 0:01:50]} 22. Ng3 {[%emt 0:01:22]} Nh5 {[%emt 0:04:24]} 23. Qc1 {[%emt 0:02:09]} Qh4 {[%emt 0:04:45]} 24. Nxh5 {[%emt 0:01:37]} gxh5 {[%emt 0:00:05]} 25. Bc4 {[%emt 0:01:18]} 1/2-1/2

[Event "5th Ordu Open 2019"]
[Site "Ordu"]
[Date "2019.05.05"]
[Round "9.10"]
[White "Elashvili, Giorgi"]
[Black "Akbas, Umut Ata"]
[Result "1/2-1/2"]
[ECO "A36"]
[WhiteElo "1833"]
[BlackElo "1916"]
[Annotator "NA RC"]
[PlyCount "26"]
[EventDate "2019.04.29"]
[EventType "swiss"]
[EventCountry "TUR"]
[SourceTitle "playchess.com"]
[Source "ChessBase"]
[SourceQuality "1"]
[TimeControl "5400+30"]

{[%evp 15,22,-7,0,3,-1,0,43,39,57]} 1. e4 {[%emt 0:30:30]} c5 {[%emt 0:30:30]} 2. c4 {[%emt 0:00:30]} Nc6 {[%emt 0:00:30]} 3. Nc3 {[%emt 0:00:30]} g6 {[%emt 0:00:00]} 4. g3 {[%emt 0:00:00]} Bg7 {[%emt 0:00:00]} 5. Bg2 {[%emt 0:00:00]} d6 {[%emt 0:00:00]} 6. d3 {[%emt 0:00:00]} e6 {[%emt 0:00:00]} 7. Nge2 {[%emt 0:00:00]} Nge7 {[%emt 0:00:00]} 8. O-O {[%emt 0:00:00]} O-O {[%emt 0:00:00]} 9. Rb1 {[%emt 0:00:00]} b6 {[%emt 0:06:30]} 10. Be3 {[%emt 0:01:30]} Bb7 {[%emt 0:04:30]} 11. d4 {[%emt 0:02:30]} Rc8 $14 {[%emt 0:01:30]} 12. b3 {[%emt 0:13:30]} e5 {[%emt 0:08:30]} 13. dxc5 {[%emt 0:02:30]} dxc5 {[%emt 0:00:30]} 1/2-1/2

[Event "5th Ordu Open 2019"]
[Site "Ordu"]
[Date "2019.05.05"]
[Round "9.11"]
[White "Serestian, Arman"]
[Black "Kurdas, Halil Ibrahim"]
[Result "1-0"]
[ECO "D02"]
[WhiteElo "1991"]
[BlackElo "1903"]
[Annotator "NA RC"]
[PlyCount "121"]
[EventDate "2019.04.29"]
[EventType "swiss"]
[EventCountry "TUR"]
[SourceTitle "playchess.com"]
[Source "ChessBase"]
[SourceQuality "1"]
[TimeControl "5400+30"]

1. d4 {[%emt 0:30:30]} d5 {[%emt 0:30:30]} 2. Nf3 {[%emt 0:00:30]} Nf6 {[%emt 0:00:00]} 3. e3 {[%emt 0:00:00]} e6 {[%emt 0:00:00]} 4. Nbd2 {[%emt 0:00:00]} a6 {[%emt 0:00:30]} (4... b6 5. b3 Bb7 6. Bb2 Nbd7 7. Bd3 Be7 8. O-O O-O 9. c4 c5 10. cxd5 Nxd5 11. Rc1 Rc8 12. Nc4 N5f6 13. Qe2 cxd4 14. Bxd4 Nc5 15. Bb1 Qd5 16. Rfd1 Qh5 17. Bxf6 Bxf6 18. Nd6 Bxf3 19. Qxf3 Qxf3 20. gxf3 {½-½ (80) Mamedyarov,S (2817)-Wang,H (2730) St Petersburg 2018}) 5. b3 {[%emt 0:00:00]} c5 {[%emt 0:00:30]} 6. Bb2 {[%emt 0:00:00] D02: 1 d4 d5 2 Nf3 sidelines, including 2...Nf6 3 g3 and 2...Nf6 3 Bf4} Nc6 {[%emt 0:01:30]} 7. a3 {[%emt 0:00:30]} b5 {[%emt 0:00:30]} 8. dxc5 $146 {[%emt 0:02:30]} ({Predecessor:} 8. Ne5 Nxe5 9. dxe5 Nd7 10. a4 b4 11. e4 Bb7 12. exd5 exd5 13. Bd3 Qc7 14. Qe2 Qc6 15. f4 Be7 16. O-O O-O-O 17. Rae1 Rde8 18. Qg4 h5 19. Qh3 Bd8 20. Bf5 Rh6 {1-0 (20) Tosic,M (2421)-Cretnik,U (2214) Belgrade 2014}) 8... Bxc5 {[%emt 0:00:30]} 9. Rc1 {[%emt 0:01:30]} Qe7 {[%emt 0:01:30]} 10. c4 {[%emt 0:02:30]} bxc4 {[%emt 0:03:30]} 11. bxc4 {[%emt 0:00:00]} Bd7 {[%emt 0:03:30]} 12. cxd5 {[%emt 0:01:00]} exd5 {[%emt 0:01:30]} 13. Be2 {[%emt 0:16:30]} Bxa3 {[%emt 0:06:30]} 14. Bxa3 {[%emt 0:00:30]} Qxa3 {[%emt 0:00:30]} 15. O-O {[%emt 0:00:30]} O-O {[%emt 0:00:30]} 16. Ra1 {[%emt 0:00:30]} Qd6 {[%emt 0:01:30]} 17. Bxa6 {[%emt 0:01:30]} Ne5 {[%emt 0:03:30]} 18. Nxe5 {[%emt 0:01:30]} Qxe5 {[%emt 0:00:00]} 19. Nf3 {[%emt 0:02:30]} Qd6 {[%emt 0:01:00]} 20. Be2 {[%emt 0:01:30]} Ne4 {[%emt 0:05:30]} 21. Qd4 {[%emt 0:00:30]} Nc5 {[%emt 0:04:30]} 22. Rxa8 {[%emt 0:01:30]} Rxa8 {[%emt 0:00:30]} 23. Rd1 {[%emt 0:00:30]} Be6 {[%emt 0:00:30]} 24. Qh4 {[%emt 0:05:30]} h6 {[%emt 0:00:30]} 25. g4 {[%emt 0:01:30]} Ra4 $11 {[%emt 0:04:30]} 26. Nd4 {[%emt 0:03:30]} Ne4 {[%emt 0:00:30]} 27. Bd3 {[%emt 0:02:30]} Ng5 {[%emt 0:06:30]} 28. Kg2 {[%emt 0:01:30]} Ra2 {[%emt 0:01:30]} 29. Qg3 {[%emt 0:01:30]} Qxg3+ {[%emt 0:02:30]} 30. Kxg3 {[%emt 0:00:30]} Ra3 {[%emt 0:02:13]} 31. Bc2 {[%emt 0:01:30]} Rc3 {[%emt 0:03:17]} 32. Rb1 {[%emt 0:01:30]} Nh7 {[%emt 0:05:20]} 33. Rb8+ {[%emt 0:01:40]} Rc8 {[%emt 0:00:06]} 34. Bxh7+ {[%emt 0:05:20]} Kxh7 {[%emt 0:00:01]} 35. Rb7 {[%emt 0:01:01]} Rc3 {[%emt 0:02:30]} 36. Re7 {[%emt 0:00:38]} Kg8 {[%emt 0:03:17]} 37. Re8+ {[%emt 0:00:44]} Kh7 {[%emt 0:00:30]} 38. Nxe6 {[%emt 0:00:30]} fxe6 {[%emt 0:00:30]} 39. Rxe6 {[%emt 0:00:00]} d4 {[%emt 0:00:00]} 40. h4 {[%emt 0:00:00]} Kg8 {[%emt 0:00:06]} 41. Kf4 {[%emt 0:00:24]} dxe3 {[%emt 0:00:30]} 42. fxe3 {[%emt 0:00:30]} Kf7 {[%emt 0:00:00]} 43. Re5 {[%emt 0:02:35]} Rc4+ {[%emt 0:00:00]} 44. e4 {[%emt 0:00:12]} Rc1 {[%emt 0:00:00]} 45. Ra5 {[%emt 0:00:00]} Rf1+ {[%emt 0:00:00]} 46. Ke5 {[%emt 0:00:49]} Rg1 {[%emt 0:00:00]} 47. Ra7+ {[%emt 0:00:18]} Kg8 {[%emt 0:00:30]} 48. Kf5 {[%emt 0:00:30]} Rf1+ {[%emt 0:00:04]} 49. Ke5 {[%emt 0:02:40]} Rg1 {[%emt 0:00:05]} 50. g5 {[%emt 0:01:34]} hxg5 {[%emt 0:00:30]} 51. hxg5 {[%emt 0:00:30]} Rxg5+ {[%emt 0:00:00]} 52. Kd6 {[%emt 0:00:00]} Rg1 {[%emt 0:00:03]} 53. e5 {[%emt 0:00:00]} Rd1+ {[%emt 0:00:36]} 54. Ke7 {[%emt 0:00:03]} g5 {[%emt 0:00:25]} 55. Kf6 {[%emt 0:00:47]} Rg1 {[%emt 0:01:18]} 56. e6 {[%emt 0:00:47]} g4 {[%emt 0:00:32]} 57. e7 {[%emt 0:00:50]} Re1 {[%emt 0:07:10]} 58. Ra8+ {[%emt 0:00:30]} Kh7 {[%emt 0:00:00]} 59. e8=Q {[%emt 0:00:26]} Rxe8 {[%emt 0:00:06]} 60. Rxe8 {[%emt 0:00:30]} g3 {[%emt 0:00:00]} 61. Re7+ {[%emt 0:00:00]} 1-0

[Event "5th Ordu Open 2019"]
[Site "Ordu"]
[Date "2019.05.05"]
[Round "9.12"]
[White "Dikilitas, Beren"]
[Black "Bolkvadze, Tedo"]
[Result "0-1"]
[ECO "C07"]
[WhiteElo "1364"]
[BlackElo "1588"]
[Annotator "NA RC"]
[PlyCount "108"]
[EventDate "2019.04.29"]
[EventType "swiss"]
[EventCountry "TUR"]
[SourceTitle "playchess.com"]
[Source "ChessBase"]
[SourceQuality "1"]
[TimeControl "5400+30"]

1. e4 {[%emt 0:30:30]} e6 {[%emt 0:30:30]} 2. d4 {[%emt 0:00:00]} d5 {[%emt 0:00:30]} 3. Nd2 {[%emt 0:00:00]} c5 {[%emt 0:00:30]} 4. exd5 {[%emt 0:00:30]} Qxd5 {[%emt 0:00:30]} 5. dxc5 {[%emt 0:00:30]} Bxc5 {[%emt 0:00:30]} 6. Ngf3 {[%emt 0:00:30]} Nf6 {[%emt 0:00:30]} 7. Bc4 {[%emt 0:00:00]} Qh5 {[%emt 0:03:30]} 8. Qe2 {[%emt 0:23:00]} O-O {[%emt 0:01:30]} 9. O-O {[%emt 0:00:30]} Nc6 {[%emt 0:05:30]} 10. c3 {[%emt 0:01:30]} e5 {[%emt 0:05:30]} 11. Ne4 {[%emt 0:04:30]} Nxe4 {[%emt 0:00:30]} 12. Qxe4 {[%emt 0:00:30]} Bd6 {[%emt 0:00:30]} 13. Rd1 {[%emt 0:14:30]} Bc7 {[%emt 0:03:30]} 14. h3 {[%emt 0:10:42]} Bf5 {[%emt 0:04:30]} 15. Qh4 {[%emt 0:00:54]} Qg6 {[%emt 0:01:30]} 16. Qg5 {[%emt 0:00:45]} Rad8 {[%emt 0:01:30]} 17. Be3 {[%emt 0:00:56]} h6 {[%emt 0:03:30]} 18. Qxg6 {[%emt 0:00:46]} Bxg6 {[%emt 0:00:30]} 19. Bc5 {[%emt 0:03:13]} Rfe8 {[%emt 0:01:30]} 20. b4 {[%emt 0:02:58]} Bc2 {[%emt 0:01:30]} 21. Rxd8 {[%emt 0:01:09]} Rxd8 {[%emt 0:00:30]} 22. Ne1 {[%emt 0:01:53]} Be4 {[%emt 0:02:30]} 23. Bb3 {[%emt 0:00:19]} b6 {[%emt 0:00:30]} 24. Be3 {[%emt 0:00:20]} Ne7 {[%emt 0:01:30]} 25. f3 {[%emt 0:00:34]} Bc6 {[%emt 0:02:30]} 26. Bf2 {[%emt 0:00:31]} Bd5 {[%emt 0:00:30]} 27. c4 {[%emt 0:01:02]} Be6 {[%emt 0:00:30]} 28. Bh4 {[%emt 0:00:48]} g5 {[%emt 0:00:30]} 29. Bf2 {[%emt 0:00:00]} Nc6 {[%emt 0:02:30]} 30. Nc2 {[%emt 0:00:11]} Rd3 {[%emt 0:02:30]} 31. Rb1 {[%emt 0:00:58]} Bf5 {[%emt 0:02:30]} 32. Ba4 {[%emt 0:00:33]} Rd2 {[%emt 0:01:57]} 33. Rc1 {[%emt 0:00:36]} Nd4 {[%emt 0:05:06]} 34. Nxd4 {[%emt 0:00:30]} exd4 {[%emt 0:00:30]} 35. Bb3 {[%emt 0:00:00]} d3 {[%emt 0:03:10]} 36. Rd1 {[%emt 0:00:20]} Rxd1+ {[%emt 0:01:16]} 37. Bxd1 {[%emt 0:00:30]} Be6 {[%emt 0:00:00]} 38. Bb3 {[%emt 0:00:23]} b5 {[%emt 0:01:18]} 39. Bxa7 {[%emt 0:00:30]} bxc4 {[%emt 0:00:00]} 40. Bd1 {[%emt 0:00:21]} c3 {[%emt 0:00:00]} 41. a4 {[%emt 0:00:24]} c2 {[%emt 0:00:00]} 42. Bxc2 {[%emt 0:00:23]} dxc2 {[%emt 0:00:28]} 43. Be3 {[%emt 0:00:00]} Bf4 {[%emt 0:00:13]} 44. Bxf4 {[%emt 0:00:22]} gxf4 {[%emt 0:00:30]} 45. b5 {[%emt 0:00:00]} c1=Q+ {[%emt 0:00:00]} 46. Kh2 {[%emt 0:00:00]} Qa3 {[%emt 0:00:10]} 47. b6 {[%emt 0:00:03]} Qxa4 {[%emt 0:00:24]} 48. b7 {[%emt 0:00:30]} Qb5 {[%emt 0:00:30]} 49. h4 {[%emt 0:00:30]} Qxb7 {[%emt 0:00:00]} 50. h5 {[%emt 0:00:00]} Kg7 {[%emt 0:00:00]} 51. g3 {[%emt 0:00:00]} Qb2+ {[%emt 0:00:13]} 52. Kg1 {[%emt 0:00:19]} fxg3 {[%emt 0:00:30]} 53. f4 {[%emt 0:00:00]} Qf2+ {[%emt 0:00:00]} 54. Kh1 {[%emt 0:00:00]} Bd5# {[%emt 0:00:00]} 0-1